Cogmind - Beta 14 @@@ ROGUE MODE // 2024.10.14 @ 11:18:34 Player: THN-L0C Result: Smashed by cave-in Performance ------------- Evolutions (0) 0 Regions Visited (2) 400 Robots Destroyed (41) 205 Value Destroyed (1116) 1116 Prototype IDs (0) 0 Alien Tech Used (0) 0 Bonus (0) 0 TOTAL SCORE: 1721 Bonus ------- None Cogmind --------- Core Integrity 0/250 Matter 114/300 Energy 36/100 System Corruption 8% Temperature Cool (2) Movement Treading (160) Location -10/Subcaves Parts ------- > --- POWER (1) -------- (None) > --- PROPULSION (2) --- Improved Treads Spiked Treads > --- UTILITY (2) ------ Large Storage Unit > --- WEAPON (2) ------- Battle Cannon Slug Cannon (fused) > --- INVENTORY (15) --- Subdweller Power Source Subdweller Power Source Improved Treads High-capacity Storage Unit Cargo Storage Unit Large Battery (200) Improved Terrain Scanner Seismic Detector Scrap Shield Battle Rifle Subdweller Machine Gun Barrage Gun Mining Laser Peak State ------------ > --- POWER ------------ Subdweller Power Source > --- PROPULSION ------- Improved Treads Spiked Treads > --- UTILITY ---------- Large Storage Unit Improved Terrain Scanner > --- WEAPON ----------- Battle Cannon Slug Cannon > --- INVENTORY -------- Subdweller Power Source Subdweller Power Source Improved Treads High-capacity Storage Unit Cargo Storage Unit Large Battery Seismic Detector Scrap Shield Shield Generator Subdweller Machine Gun Mining Laser [Rating: 18] Favorites ----------- Power Subdweller Power Source Engine Subdweller Power Source Propulsion Improved Treads Treads Improved Treads Utility Large Storage Unit Device Improved Terrain Scanner Storage Large Storage Unit Protection Light Armor Plating Weapon Battle Cannon Energy Gun Heavy EM Pulse Gun Ballistic Gun Assault Rifle Ballistic Cannon Battle Cannon Launcher Grenade Launcher Special Weapon Mining Laser Build | -11 -10 -10 ------- Run | Yrd Mat Sub Slots Evolved . | . . . Power . | . . . Propulsion . | . . . Utility . | . . . Weapon . | . . . Parts Attached 69 | 7 10 52 Power 6 | 1 1 4 Engine 6 | 1 1 4 Core . | . . . Reactor . | . . . Propulsion 8 | 2 3 3 Treads 8 | 2 3 3 Leg . | . . . Wheel . | . . . Hover . | . . . Flight . | . . . Utility 29 | 2 4 23 Device 20 | 1 3 16 Storage 2 | 1 1 . Processor . | . . . Hackware . | . . . Protection 7 | . . 7 Artifact . | . . . Weapon 26 | 2 2 22 Energy Gun 8 | . 1 7 Energy Cannon . | . . . Ballistic Gun 7 | 2 1 4 Ballistic Cannon 2 | . . 2 Launcher 3 | . . 3 Special Weapon 6 | . . 6 Impact Weapon . | . . . Slashing Weapon . | . . . Piercing Weapon . | . . . Special Melee Weapon . | . . . Unidentified Prototypes . | . . . Parts Lost 12 | . 1 11 Power 3 | . . 3 Propulsion 2 | . . 2 Utility 3 | . 1 2 Weapon 4 | . . 4 Highest Loss Streak 4 | . 1 4 To Critical Strikes . | . . . Average Slot Usage (%) 96 | . 99 96 Engine 12 | . 14 12 Treads 27 | . 28 27 Device 12 | . 13 12 Storage 14 | . 14 14 Protection 1 | . . 1 Energy Gun 5 | . 9 4 Ballistic Gun 4 | . 18 2 Ballistic Cannon 13 | . . 16 Special Weapon 1 | . . 1 Peak Build Rating 18 | 7 13 18 Average Rating 14 | 5 12 14 On Entrance 6 | . 7 12 Naked Turns . | . . . Heaviest Build 37 | 12 32 37 Greatest Support 46 | 40 46 46 Greatest Overweight (x) 1 | 1 . . Average Overweight (x) . | . . . Largest Inventory Capacity 15 | 8 15 15 Average Capacity 14 | 7 13 15 Most Carried 15 | 2 15 15 Average Carried 13 | . 12 14 Final Capacity 15 | 8 15 15 Final Carried 15 | 2 15 15 Class Distribution -------------------- 58% | Mutant 41% | Derelict-Mutant Dominant Class ---------------- Mutant | -10/Materials Derelict-Mutant | -10/Subcaves Resources | -11 -10 -10 ----------- Run | Yrd Mat Sub Matter Collected 1627 | 302 200 1125 Remotely . | . . . Salvage Created 1416 | 129 495 792 Parts 92 | 10 34 48 Haulers Intercepted 2 | . 2 . Recyclers Shooed . | . . . Parts Field Recycled . | . . . Retrieved Matter . | . . . Parts Self-Destructed 17 | . . 17 Prevented 1 | . . 1 Kills | -11 -10 -10 ------- Run | Yrd Mat Sub Combat Hostiles Destroyed 31 | . 8 23 Melee 1 | . . 1 Guns 15 | . 7 8 Cannons 5 | . . 5 AOE 9 | . 1 8 Classes Destroyed 11 | 2 5 4 Worker 1 | . 1 . Tunneler 3 | 3 . . Hauler 2 | . 2 . Recycler 1 | 1 . . Watcher 3 | . 3 . Swarmer 7 | . 3 4 Grunt 8 | . 5 3 Sentry 1 | . . 1 Artisan 1 | . . 1 Cobbler 1 | . . 1 Subdweller 15 | . . 15 Best Kill Streak 4 | 4 4 4 Combat Bots Only 4 | . 4 4 Max Kills in Single Turn 1 | 1 1 1 Gunslinging . | . . . Exploded 1 | . 1 1 Melee 1 | . . 1 Uniques/NPCs Destroyed . | . . . Combat | -11 -10 -10 -------- Run | Yrd Mat Sub Hostile Shots Fired 158 | . 34 124 Missed 45 | . 14 31 Damage Taken 1692 | . 178 1514 Core 298 | . 31 267 Absorbed by Shields 153 | . 68 85 Core Remaining (%) 100 | 100 . . Volleys Fired 248 | 8 37 203 Largest 2 | 2 2 2 Hottest 100 | 40 65 100 Shots Fired 340 | 16 73 251 Gun 200 | 16 73 111 Cannon 85 | . . 85 Launcher 18 | . . 18 Special 37 | . . 37 Kinetic 179 | 16 36 127 Thermal 37 | . . 37 Explosive 18 | . . 18 Electromagnetic 106 | . 37 69 Robot Hit Streak 22 | 5 7 22 Robot Miss Streak 3 | 1 3 2 Penetration Max . | . . . Secondary Targets 1 | . 1 . Max Gunslinging Chain 1 | . 1 . Shots Hit Robots 163 | 11 43 109 Core Hits 68 | 7 22 39 Critical Kills 2 | . 1 1 Critical Parts Destroyed . | . . . Critical Strikes 5 | . 2 3 Destroy 2 | . 1 1 Blast 1 | . . 1 Corrupt 2 | . 1 1 Melee Attacks . | . . . Impact . | . . . Slashing . | . . . Piercing . | . . . Sneak Attacks . | . . . Combat Hostiles . | . . . Follow-up Attacks . | . . . Damage Inflicted 3119 | 132 754 2233 Guns 1750 | 132 666 952 Cannons 303 | . . 303 Explosions 1042 | . 70 972 Melee . | . . . Ramming 24 | . 18 6 Kinetic 1027 | 132 226 669 Thermal 134 | . 70 64 Explosive 908 | . . 908 Electromagnetic 1026 | . 440 586 Impact . | . . . Slashing . | . . . Piercing . | . . . Highest Corruption 1 | . 1 1 Average Corruption 1 | . 1 1 Corruption Purged . | . . . Corruption Blocked . | . . . Effects 56 | . 3 53 Message Errors 18 | . 2 16 Matter Fused 13 | . . 13 Heat Flow Errors 5 | . . 5 Energy Discharges 7 | . . 7 Parts Rejected 1 | . . 1 Parts Fused 2 | . . 2 Data Loss (minor) 3 | . . 3 Data Loss (major) 2 | . . 2 Misfires 1 | . . 1 Alerts 3 | . . 3 Weapon Failures 1 | . 1 . Overload Shots . | . . . Overflow Damage 54 | . 10 44 Projectiles . | . . . Explosions 54 | . 10 44 Melee . | . . . Knockbacks 2 | . . 2 Impact . | . . . Kinetic 2 | . . 2 Secondary . | . . . Self-Inflicted Damage 27 | . . 27 Shots 2 | . . 2 Rammed 4 | . 3 1 Targets Rammed 5 | . 3 2 Kicked . | . . . Crushed 1 | . . 1 Highest Temperature 224 | . 45 224 Average Temperature 27 | . 12 81 Received Heat Transfer 283 | . 82 201 Siege Activations . | . . . Robots Corrupted 1 | . . 1 Combat Hostiles 1 | . . 1 Parts Fried 8 | . 4 4 Impact Corruptions . | . . . Robots Melted . | . . . Combat Hostiles . | . . . Parts Melted . | . . . Heat Transferred 150 | . 50 100 Parts Sabotaged . | . . . Parts Stolen . | . . . Parts Stripped . | . . . Power Chain Reactions 4 | . 2 2 Alert | -11 -10 -10 ------- Run | Yrd Mat Sub Peak Influence 292 | 20 292 . Initial 13 | . 13 . Average 117 | 8 126 . Maximum Alert Level 1 | . 1 . Low Security (%) 84 | 100 82 . Level 1 15 | . 17 . Level 2 . | . . . Level 3 . | . . . Level 4 . | . . . Level 5 . | . . . High Security . | . . . Max Security . | . . . Squads Dispatched 1 | . 1 . Investigation 1 | . 1 . Extermination . | . . . Reinforcement . | . . . Assault . | . . . Garrison . | . . . Intercept . | . . . Searches Triggered . | . . . Construction Impeded . | . . . Haulers Reinforced . | . . . Active Scanning Responses . | . . . Cargo Convoy Interrupts . | . . . Stealth | -11 -10 -10 --------- Run | Yrd Mat Sub Distress Signals 2 | . 2 . Communications Jammed . | . . . Distress Signals . | . . . Times Spotted 49 | . 22 27 Peak Tracking Total 6 | . 5 6 Tactical Retreats 4 | . 1 3 Traps | -11 -10 -10 ------- Run | Yrd Mat Sub Traps Triggered 2 | . 1 1 Indirectly . | . . . Trap Hack Attempts . | . . . Triggered . | . . . Disarmed . | . . . Reprogrammed . | . . . Reused . | . . . Traps Extracted . | . . . Installed . | . . . Triggered 3 | . 1 2 Machines | -11 -10 -10 ---------- Run | Yrd Mat Sub Machines Disabled 1 | . 1 . Max in Single Turn 1 | . 1 . Machines Repaired . | . . . Machines Dismantled . | . . . Machines Sabotaged . | . . . Overloaded Fab Kills . | . . . Hacking | -11 -10 -10 --------- Run | Yrd Mat Sub Machines Accessed 8 | . 7 1 Terminals 6 | . 6 . Fabricators . | . . . Repair Stations . | . . . Recycling Units 1 | . 1 . Scanalyzers . | . . . Garrison Access . | . . . Total Hacks 24 | . 20 4 Successful 16 | . 12 4 Failed 8 | . 8 . Catastrophic 2 | . 2 . Database Lockouts . | . . . Manual 19 | . 19 . Terminals 19 | . 19 . Fabricators . | . . . Repair Stations . | . . . Recycling Units 1 | . 1 . Scanalyzers . | . . . Garrison Access . | . . . Terminal Hacks 5 | . 1 4 Record 4 | . . 4 Terminal Index 1 | . 1 . Fabricator Hacks . | . . . Repair Station Hacks . | . . . Recycling Unit Hacks 1 | . 1 . Retrieve Components 1 | . 1 . Scanalyzer . | . . . Garrison Access Hacks . | . . . Unauthorized Hacks 10 | . 10 . Terminals 10 | . 10 . Assimilate 1 | . 1 . Botnet 2 | . 2 . Operators 2 | . 2 . Skim 5 | . 5 . Fabricators . | . . . Repair Stations . | . . . Recycling Units . | . . . Scanalyzers . | . . . Garrison Access . | . . . Data Cores Recovered . | . . . Used . | . . . Hacking Detections 6 | . 6 . Full Trace Events . | . . . Feedback Events . | . . . Feedback Blocked . | . . . Robot Schematics Acquired . | . . . Robots Built . | . . . Authchips . | . . . Time . | . . . Total Robot Build Rating . | . . . Part Schematics Acquired . | . . . Parts Built . | . . . Authchips . | . . . Time . | . . . Total Part Build Rating . | . . . Parts Repaired . | . . . Time . | . . . Parts Recycled . | . . . Recycled Matter . | . . . Retrieved Matter . | . . . Retrieved Components 1 | . 1 . Parts Scanalyzed . | . . . Part Schematics Acquired . | . . . Parts Damaged . | . . . Bothacking | -11 -10 -10 ------------ Run | Yrd Mat Sub Used RIF Installer . | . . . Robots Hacked . | . . . Non-combat . | . . . Combat . | . . . Robot Hacks Applied . | . . . Relay Couplers Released . | . . . Fabnet Peak Effective % . | . . . Robots Rewired . | . . . Allies Hacked . | . . . Hacks Repelled . | . . . Allies | -11 -10 -10 -------- Run | Yrd Mat Sub Total Allies . | . . . Largest Group . | . . . Highest-Rated Group . | . . . Highest-Rated Ally . | . . . Total Orders . | . . . Ally Attacks . | . . . Total Damage . | . . . Kills . | . . . Allies Corrupted . | . . . Allies Melted . | . . . Intel | -11 -10 -10 ------- Run | Yrd Mat Sub Robot Analysis Total . | . . . Derelict Logs Recovered 2 | . . 2 Drone Launches . | . . . Drone Recoveries . | . . . Exploration | -11 -10 -10 ------------- Run | Yrd Mat Sub Turns Passed 8355 | 117 1359 6879 Spaces Moved 4215 | 56 690 3469 Core 8 | 8 . . Treads 4207 | 48 690 3469 Legs . | . . . Wheels . | . . . Hover . | . . . Flight . | . . . Fastest Speed 50 | 50 160 160 Average Speed 159 | 146 160 160 Slowest Speed 160 | 160 160 160 Overloaded Moves . | . . . Propulsion Burnouts . | . . . Robots Hopped . | . . . Cave-ins Triggered 1 | . . 1 Exploration Rate (%) 65 | 6 92 97 Regions Visited 2 Branch Regions 1 Pre-discovered Areas 1 | . . 1 Known Exits Taken 1 | . 1 . Unknown Exits Taken 1 | 1 . . Scrap Searched 8 | . . 8 Spaces Dug 13 | . . 13 Terrain Destroyed 112 | . 4 108 Melee . | . . . Projectile 25 | . . 25 AOE 87 | . 4 83 Terrain Rammed . | . . . Walls Destroyed . | . . . Machines Disabled . | . . . Actions | -11 -10 -10 --------- Run | Yrd Mat Sub Total 5397 | 73 872 4452 Wait 821 | 1 109 711 Move 4212 | 55 689 3468 Hop . | . . . Pick Up 27 | 2 15 10 Fast Attach 12 | 7 1 4 Attach 7 | . 1 6 Detach 1 | . 1 . Swap 50 | . 8 42 Drop 14 | . 8 6 Fire 248 | 8 37 203 Melee . | . . . Ram . | . . . Kick . | . . . Crush 5 | . 3 2 Escape Stasis . | . . . Rewire . | . . . Trap . | . . . Miscellaneous . | . . . Route ------- -11/Scrapyard -10/Materials (discovered 6 exits: *Mat x3 / *Min x2 / *Sub) -10/Subcaves (discovered 3 exits: *Mat x2 / [*Rec]) History --------- Turn | Location | Event 37 | -11/Scrapyard | Discovered new exit (range 15) 118 | -11/Scrapyard | Entered Materials 314 | -10/Materials | Build established: Mutant 821 | -10/Materials | Discovered new exit (range 6) 993 | -10/Materials | Discovered new exit (range 8) 1043 | -10/Materials | Discovered new exit (range 5) 1249 | -10/Materials | Identified exit to Mines 1249 | -10/Materials | Identified exit to Subcaves 1328 | -10/Materials | Learned Storage trap positions 1370 | -10/Materials | Identified exit to Materials 1399 | -10/Materials | Learned Storage trap positions 1438 | -10/Materials | Loaded intel: 4 trap records 1477 | -10/Materials | Entered Subcaves 1478 | -10/Subcaves | Identified exit to Materials 1481 | -10/Subcaves | Learned location of Storage (-7) 2103 | -10/Subcaves | Shifting Twisted Machinery released Flamer 2146 | -10/Subcaves | Shifting Twisted Machinery released Battle Cannon 2697 | -10/Subcaves | Core integrity fell below 50% 3205 | -10/Subcaves | A swath of the cavern ceiling suddenly collapsed 3412 | -10/Subcaves | Shifting Twisted Machinery released Battle Cannon 3470 | -10/Subcaves | Shifting Twisted Machinery released Riot Gun 3805 | -10/Subcaves | Discovered new exit (range 15) 3866 | -10/Subcaves | Core integrity fell below 20% 3904 | -10/Subcaves | Lost 4 parts (1n1u2w) 4832 | -10/Subcaves | Visited Clippyterm 4836 | -10/Subcaves | Learned Research machine intel 4865 | -10/Subcaves | Ambushed by Subdwellers from Twisted Machinery 4949 | -10/Subcaves | A swath of the cavern ceiling suddenly collapsed 5169 | -10/Subcaves | Build established: Derelict-Mutant 5479 | -10/Subcaves | Shifting Twisted Machinery released Barrage Gun 5481 | -10/Subcaves | Shifting Twisted Machinery released Battle Rifle 8356 | -10/Subcaves | Crushed by falling debris 8356 | -10/Subcaves | Smashed by cave-in Last Messages --------------- 08056_ System corrupted: Energy discharge (-38). 08148_ Acquired 12 matter. 08179_ System corrupted: IFF burst signal emitted. 08200_ S-10 Pest destroyed. 08208_ Acquired 7 matter. 08210_ Subatomizers dissect the Flight Unit. 08213_ Flight Unit fries itself beyond repair. 08260_ System corrupted: Energy discharge (-22). 08272_ Slug penetrates Earth. 08303_ Acquired 10 matter. 08306_ = GFTQ#XDSLKVIANJ 4QM4F M/ B/HJXUBZ %GS 08339_ Slug penetrates Earth. 08347_ Dropped Lrg. Battery. 08348_ Acquired Lrg. Battery. 08356_ The unstable cave ceiling collapses. 08356_ Crushed by falling debris. 08356_ Broken Sub. Power Source destroyed. 08356_ System corrupted by crushing effect (+5). 08356_ Shield Generator destroyed. 08356_ System corrupted by crushing effect (+2). Map ----- +----------------------------------------------------+ | #####" "" ###### #?????????#?### | | """ & & # ##??# ##??????????# | | "" #### #??#?????### | | ##"## ## ####?????## | | ##### ######## ###??#????# | | "#???# ######?# ###?????#???# # | | "###### " #?# ######???#?????## # | | # #" & " #?####### # #####?????### | | "#??????## #?????##?## | | " " "#????#?### # ##????#??#?# | | # #"" " ###??????## ## ###????#??### | | ####### ######??## ### ##??????#### | | ??????# #######?# # #?##?### | | ??#???# ########## ###???## | | ??????# ## # #?## ###?#### ## | | ??????## ### ##### #### #### | | ???????## ##?# # # ### ##??# | | ????????# ##?# ## # # ## ####? | | ???????# #?# ######;; # ! ## ## | | ???????# #?#####??### ;### #? | | ???????# #??????#??# ### ## | | ???????# #?????????### ### | | ???????# ##???????""??# ##;; ### ## ### | | ???????## #????????????# # "# ##?# ####?## | | ???????# #???????? ???# ## # #??# #?????# | | ??????? # ### # ""?#@########??# #?????# | | ?????## % % <;##???#?????## ##???## | | ?????#" # # ""##??????????#?## #??## | | #???## ## ???????? ?????#?#??????#?#####?# | | ##### ###???????? ????????????????????#??#### | | ## ##?????????#" ???#?????#??????##???#?#???### | | ## # #?????????###????????????#??????????#??##??? | | ###=###?????????????##??????#??#???#?#???#???#??#? | | ??##=#?????????????????????##?#??????????#?#?????# | | ???###?????????????????????????#??????????#?#???## | | #?????????????????????#???#???#???????????#???#??? | | ###???????????????#??????????#?????#???????#??#?#? | | #???????????##?????????????#??????#????????????? | | ##????????####?????###?????????#???????????????#? | | ##?????????# ###?### ##?#??#????????????????????? | | ?????#?????# ### #???????????????????????#?? | | ????????#??### #?????????????????????????? | | ????#????#??#### ##?#??????????????????????#? | | ???????????????## ###?????????#???????????????? | | #######????????## ##????????????????????????#?? | | ""%##????#??????# ##??##?????????????????????? | | [ %#???????????# #???????????#?????????????? | | #????????##?# ##???#????????????????????? | | # ""#????????# ## #?????????????????????????? | | "##?????#??# ####??#?????????????????????? | +----------------------------------------------------+ Best States ------------- Heat Dissipation 25 Energy Generation 15 Energy Capacity 250 Matter Stores 300 Matter Capacity 300 Sight Range 16 Terrain Scan Range 16 Terrain Scan Density 10 Armor Coverage 150 Evasion (%) 40 Recoil Reduction 2 Item Schematics ----------------- None Robot Schematics ------------------ None Fabricated ------------ Nothing Alien Tech Used ----------------- None Achievements -------------- None Challenges ------------ None Game ------ Seed MultinovaGhostThermoblaster Manual? 0 Play Time 00:50:57 Cumulative 346.7 hours Start 2024.10.14 @ 10:46:08 End 2024.10.14 @ 11:18:34 Sessions 1 Manual Loads 0 Difficulty Rogue Special Mode None Game No. 264 Rogue 264 Adventurer 0 Explorer 0 Win Type - Total 3 Types 1/0/1/1/0/0/0/0/0 Lore% 75 Gallery% 80 Achievement% 64 Wizard Run 0 Options --------- Layout 2 ASCII 0 Keyboard 1 Movement Vi Keybinds 0 Fullscreen 2 Font 32/SmallcapsGlow Map View 77x44 Zoom Use 0% Tactical HUD 1 Map Filters NONE Filters NONE Steam 1 RUN: 697e4085-4450-4694-95c9-9213044049e5